[Event "*** Titled Tuesday Blitz"]
[Site "Chess.com"]
[Date "2020.05.05"]
[Round "1"]
[White "ClockworkKubrick"]
[Black "ChesterF"]
[Result "0-1"]
[WhiteElo "2159"]
[BlackElo "2525"]
[TimeControl "180+1"]
[EndTime "10:08:27 PDT"]
[Termination "ChesterF won by resignation"]

1. e4 {[%clk 0:02:57.7]} 1... c5 {[%clk 0:02:58.8]} 2. Nf3 {[%clk 0:02:57.9]}
2... d6 {[%clk 0:02:59]} 3. Nc3 {[%clk 0:02:58.2]} 3... Nf6 {[%clk 0:02:58.4]}
4. Bb5+ {[%clk 0:02:58]} 4... Nbd7 {[%clk 0:02:56.3]} 5. O-O {[%clk 0:02:58.9]}
5... a6 {[%clk 0:02:55.4]} 6. Bxd7+ {[%clk 0:02:58.8]} 6... Bxd7 {[%clk
0:02:56.3]} 7. d3 {[%clk 0:02:59.3]} 7... e6 {[%clk 0:02:54.1]} 8. Be3 {[%clk
0:02:58.6]} 8... Be7 {[%clk 0:02:54.2]} 9. h3 {[%clk 0:02:58.9]} 9... O-O {[%clk
0:02:54]} 10. Qd2 {[%clk 0:02:59]} 10... b5 {[%clk 0:02:52.4]} 11. Nh2 {[%clk
0:02:56]} 11... Bc6 {[%clk 0:02:48.8]} 12. Bg5 {[%clk 0:02:51.4]} 12... d5
{[%clk 0:02:45.3]} 13. e5 {[%clk 0:02:50.9]} 13... Nd7 {[%clk 0:02:45]} 14. Bf4
{[%clk 0:02:50]} 14... f6 {[%clk 0:02:25.6]} 15. Ng4 {[%clk 0:02:38.8]} 15... d4
{[%clk 0:02:05.6]} 16. exf6 {[%clk 0:02:26.6]} 16... Nxf6 {[%clk 0:02:00.3]} 17.
Nxf6+ {[%clk 0:02:25.3]} 17... Bxf6 {[%clk 0:01:55.3]} 18. Ne4 {[%clk
0:02:22.6]} 18... Bxe4 {[%clk 0:01:39.7]} 19. dxe4 {[%clk 0:02:23.5]} 19... e5
{[%clk 0:01:33]} 20. Bg3 {[%clk 0:02:21.5]} 20... Bg5 {[%clk 0:01:31.3]} 21. Qe2
{[%clk 0:02:21.2]} 21... Qe7 {[%clk 0:01:28.3]} 22. f3 {[%clk 0:02:10.6]} 22...
Rae8 {[%clk 0:01:26.1]} 23. a4 {[%clk 0:02:08.1]} 23... c4 {[%clk 0:01:21.9]}
24. axb5 {[%clk 0:02:07.3]} 24... axb5 {[%clk 0:01:22.8]} 25. b3 {[%clk
0:01:45.3]} 25... Qc5 {[%clk 0:01:13.6]} 26. Bf2 {[%clk 0:01:43]} 26... Rc8
{[%clk 0:00:59.9]} 27. Ra6 {[%clk 0:01:39]} 27... cxb3 {[%clk 0:00:55.2]} 28.
cxb3 {[%clk 0:01:38.8]} 28... Qb4 {[%clk 0:00:55.3]} 29. Rb1 {[%clk 0:01:28.4]}
29... Rfd8 {[%clk 0:00:52.6]} 30. h4 {[%clk 0:01:17.9]} 30... d3 {[%clk
0:00:50.7]} 31. Qd1 {[%clk 0:01:17.1]} 31... Be7 {[%clk 0:00:45.8]} 32. Re6
{[%clk 0:01:05.5]} 32... Bc5 {[%clk 0:00:43.7]} 33. Rb2 {[%clk 0:00:43.3]} 33...
d2 {[%clk 0:00:31.3]} 34. Bxc5 {[%clk 0:00:38]} 34... Qxc5+ {[%clk 0:00:32.2]}
35. Kh2 {[%clk 0:00:37.8]} 35... Qc1 {[%clk 0:00:29.6]} 36. Rxd2 {[%clk
0:00:16.9]} 36... Qxd1 {[%clk 0:00:18.5]} 37. Rxd1 {[%clk 0:00:15.4]} 37... Rxd1
{[%clk 0:00:18.2]} 38. Rxe5 {[%clk 0:00:16.3]} 38... Rd2 {[%clk 0:00:17.8]} 39.
Rxb5 {[%clk 0:00:16.4]} 39... Rcc2 {[%clk 0:00:17.7]} 40. Rb7 {[%clk 0:00:15]}
40... Rxg2+ {[%clk 0:00:16.1]} 41. Kh3 {[%clk 0:00:15.9]} 41... Rh2+ {[%clk
0:00:15.9]} 42. Kg4 {[%clk 0:00:16.2]} 42... Rcg2+ {[%clk 0:00:15.6]} 43. Kf5
{[%clk 0:00:16.7]} 43... h6 {[%clk 0:00:09.6]} 44. e5 {[%clk 0:00:16.5]} 44...
Rf2 {[%clk 0:00:08.2]} 45. f4 {[%clk 0:00:14.7]} 45... Rxh4 {[%clk 0:00:07.7]}
46. Rb4 {[%clk 0:00:15.3]} 46... Rc2 {[%clk 0:00:04]} 47. e6 {[%clk 0:00:14.3]}
47... Rc5+ {[%clk 0:00:03.7]} 48. Ke4 {[%clk 0:00:14.5]} 48... g5 {[%clk
0:00:03.6]} 49. Kd4 {[%clk 0:00:12.6]} 49... Rc7 {[%clk 0:00:02.7]} 50. Kd5
{[%clk 0:00:12.7]} 50... Rxf4 {[%clk 0:00:02.1]} 51. Rb8+ {[%clk 0:00:12]} 51...
Kg7 {[%clk 0:00:01.7]} 52. Kd6 {[%clk 0:00:12.3]} 52... Kf6 {[%clk 0:00:01.9]}
53. e7 {[%clk 0:00:12.5]} 53... Rxe7 {[%clk 0:00:01.5]} 54. Rf8+ {[%clk
0:00:13.4]} 54... Kg7 {[%clk 0:00:01.4]} 55. Re8 {[%clk 0:00:14.1]} 55... Rfe4
{[%clk 0:00:01.4]} 56. Kc5 {[%clk 0:00:15]} 56... R7e6 {[%clk 0:00:01.3]} 57. b4
{[%clk 0:00:15.7]} 57... Rxe8 {[%clk 0:00:01.1]} 58. b5 {[%clk 0:00:16.6]} 58...
Rb8 {[%clk 0:00:01.7]} 59. Kd5 {[%clk 0:00:16.6]} 59... Rxb5+ {[%clk 0:00:02.1]}
60. Kd6 {[%clk 0:00:16.8]} 60... h5 {[%clk 0:00:03]} 61. Kd7 {[%clk 0:00:17.3]}
61... h4 {[%clk 0:00:03.9]} 62. Kd8 {[%clk 0:00:18.1]} 62... h3 {[%clk
0:00:04.8]} 0-1

[Event "*** Titled Tuesday Blitz"]
[Site "Chess.com"]
[Date "2020.05.05"]
[Round "1"]
[White "Harsha_Bharathakoti"]
[Black "GracefulYear"]
[Result "1-0"]
[WhiteElo "2821"]
[BlackElo "2426"]
[TimeControl "180+1"]
[EndTime "10:08:29 PDT"]
[Termination "Harsha_Bharathakoti won by checkmate"]

1. Nf3 {[%clk 0:02:59.3]} 1... g6 {[%clk 0:03:00]} 2. d4 {[%clk 0:02:58.5]} 2...
Bg7 {[%clk 0:03:00.5]} 3. e4 {[%clk 0:02:58.7]} 3... c6 {[%clk 0:03:01]} 4. Bd3
{[%clk 0:02:53.9]} 4... d5 {[%clk 0:03:01]} 5. Nbd2 {[%clk 0:02:53.6]} 5... Bg4
{[%clk 0:03:00.5]} 6. c3 {[%clk 0:02:53]} 6... e6 {[%clk 0:03:00.1]} 7. h3
{[%clk 0:02:50.9]} 7... Bxf3 {[%clk 0:02:59.7]} 8. Nxf3 {[%clk 0:02:50.1]} 8...
Ne7 {[%clk 0:02:59.8]} 9. O-O {[%clk 0:02:50.7]} 9... O-O {[%clk 0:02:59.4]} 10.
Qe2 {[%clk 0:02:47.3]} 10... Nd7 {[%clk 0:02:59]} 11. Bf4 {[%clk 0:02:43.2]}
11... Re8 {[%clk 0:02:59.1]} 12. Rfe1 {[%clk 0:02:35.9]} 12... dxe4 {[%clk
0:02:54.6]} 13. Bxe4 {[%clk 0:02:31.9]} 13... Nf6 {[%clk 0:02:54]} 14. Bc2
{[%clk 0:02:32.4]} 14... Ned5 {[%clk 0:02:53.5]} 15. Bg5 {[%clk 0:02:26.8]}
15... h6 {[%clk 0:02:52.8]} 16. Bd2 {[%clk 0:02:26.8]} 16... g5 {[%clk
0:02:50.6]} 17. Ne5 {[%clk 0:02:26.4]} 17... Qe7 {[%clk 0:02:38.3]} 18. c4
{[%clk 0:01:55.2]} 18... Nc7 {[%clk 0:02:36.1]} 19. Bc3 {[%clk 0:01:54]} 19...
Nh7 {[%clk 0:02:34.6]} 20. Qf3 {[%clk 0:01:44.7]} 20... Qf6 {[%clk 0:02:31.8]}
21. Qh5 {[%clk 0:01:27.3]} 21... Qe7 {[%clk 0:01:57.4]} 22. Bxh7+ {[%clk
0:01:18.1]} 22... Kxh7 {[%clk 0:01:58.3]} 23. Nxf7 {[%clk 0:01:18.9]} 23... Rf8
{[%clk 0:01:57.3]} 24. Ne5 {[%clk 0:01:19.2]} 24... Rf6 {[%clk 0:01:51.3]} 25.
Re2 {[%clk 0:01:09.5]} 25... Raf8 {[%clk 0:01:50.3]} 26. Rae1 {[%clk 0:01:10.1]}
26... Qd6 {[%clk 0:01:44.5]} 27. Qg4 {[%clk 0:01:03.3]} 27... Rf4 {[%clk
0:01:42.6]} 28. Qg3 {[%clk 0:01:03.8]} 28... Qd8 {[%clk 0:01:33.4]} 29. Qd3+
{[%clk 0:01:03.4]} 29... Kg8 {[%clk 0:01:30]} 30. Ng6 {[%clk 0:01:03.6]} 30...
Bxd4 {[%clk 0:01:16.2]} 31. Nxf4 {[%clk 0:00:51.9]} 31... Rxf4 {[%clk
0:01:15.7]} 32. Bxd4 {[%clk 0:00:52]} 32... Qxd4 {[%clk 0:01:15.1]} 33. Qg6+
{[%clk 0:00:50.9]} 33... Qg7 {[%clk 0:01:13.9]} 34. Qxg7+ {[%clk 0:00:51.3]}
34... Kxg7 {[%clk 0:01:14.8]} 35. Rd2 {[%clk 0:00:52]} 35... Kf6 {[%clk
0:01:12.3]} 36. Rd7 {[%clk 0:00:52]} 36... Na6 {[%clk 0:01:12.2]} 37. Rxb7
{[%clk 0:00:51]} 37... Rxc4 {[%clk 0:01:10.6]} 38. Rxa7 {[%clk 0:00:51.7]} 38...
Nc5 {[%clk 0:01:10.5]} 39. Re2 {[%clk 0:00:50.9]} 39... Rb4 {[%clk 0:01:09.6]}
40. Rc7 {[%clk 0:00:50.5]} 40... Rb6 {[%clk 0:01:02.8]} 41. Rc2 {[%clk
0:00:50.2]} 41... Nd3 {[%clk 0:01:01.5]} 42. R7xc6 {[%clk 0:00:50.6]} 42... Rb7
{[%clk 0:00:51.8]} 43. g3 {[%clk 0:00:49.1]} 43... Nb4 {[%clk 0:00:51.6]} 44.
Rc7 {[%clk 0:00:49.5]} 44... Rb6 {[%clk 0:00:51.1]} 45. Re2 {[%clk 0:00:42.5]}
45... Nxa2 {[%clk 0:00:50.7]} 46. Kg2 {[%clk 0:00:42.5]} 46... Nb4 {[%clk
0:00:50.5]} 47. Ra7 {[%clk 0:00:42.8]} 47... Nd5 {[%clk 0:00:49.8]} 48. Rc2
{[%clk 0:00:41.5]} 48... h5 {[%clk 0:00:49]} 49. Ra4 {[%clk 0:00:33.8]} 49...
Ne7 {[%clk 0:00:47]} 50. Rac4 {[%clk 0:00:32.7]} 50... Nf5 {[%clk 0:00:46.2]}
51. Rc6 {[%clk 0:00:32.1]} 51... Rb4 {[%clk 0:00:45]} 52. Rd2 {[%clk 0:00:32.6]}
52... Re4 {[%clk 0:00:43.5]} 53. Rb6 {[%clk 0:00:31.3]} 53... Re5 {[%clk
0:00:39.6]} 54. b4 {[%clk 0:00:31.6]} 54... Ne7 {[%clk 0:00:38.4]} 55. b5 {[%clk
0:00:31.3]} 55... Nd5 {[%clk 0:00:37.9]} 56. Rb8 {[%clk 0:00:30.3]} 56... Re4
{[%clk 0:00:37]} 57. Rb2 {[%clk 0:00:30.2]} 57... Rc4 {[%clk 0:00:34.2]} 58. b6
{[%clk 0:00:27]} 58... Rc6 {[%clk 0:00:27.6]} 59. b7 {[%clk 0:00:27.2]} 59...
Rc7 {[%clk 0:00:22.6]} 60. Rc8 {[%clk 0:00:24.4]} 60... Rxb7 {[%clk 0:00:21.7]}
61. Rxb7 {[%clk 0:00:25.3]} 61... h4 {[%clk 0:00:20.3]} 62. Rf8+ {[%clk
0:00:24.4]} 62... Ke5 {[%clk 0:00:20]} 63. Rg7 {[%clk 0:00:24.3]} 63... hxg3
{[%clk 0:00:19.3]} 64. Rxg5+ {[%clk 0:00:25]} 64... Kd6 {[%clk 0:00:19.5]} 65.
Kxg3 {[%clk 0:00:25.9]} 65... Ne7 {[%clk 0:00:18.3]} 66. h4 {[%clk 0:00:26]}
66... Nf5+ {[%clk 0:00:17.6]} 67. Rgxf5 {[%clk 0:00:26.6]} 67... exf5 {[%clk
0:00:18.5]} 68. Rxf5 {[%clk 0:00:27.5]} 68... Ke6 {[%clk 0:00:19.4]} 69. Kf4
{[%clk 0:00:28.4]} 69... Ke7 {[%clk 0:00:19.5]} 70. h5 {[%clk 0:00:29.3]} 70...
Ke6 {[%clk 0:00:20.4]} 71. h6 {[%clk 0:00:30.2]} 71... Ke7 {[%clk 0:00:21.3]}
72. h7 {[%clk 0:00:31.1]} 72... Ke6 {[%clk 0:00:22.2]} 73. h8=Q {[%clk 0:00:32]}
73... Ke7 {[%clk 0:00:23.1]} 74. Qg7+ {[%clk 0:00:32.2]} 74... Ke6 {[%clk
0:00:24]} 75. Qf7+ {[%clk 0:00:31.8]} 75... Kd6 {[%clk 0:00:23.8]} 76. Rd5+
{[%clk 0:00:32.7]} 76... Kc6 {[%clk 0:00:24.7]} 77. Qd7+ {[%clk 0:00:33.6]}
77... Kb6 {[%clk 0:00:25.6]} 78. Rb5+ {[%clk 0:00:34.5]} 78... Ka6 {[%clk
0:00:26.5]} 79. Qb7# {[%clk 0:00:35.4]} 1-0

[Event "*** Titled Tuesday Blitz"]
[Site "Chess.com"]
[Date "2020.05.05"]
[Round "1"]
[White "saraswathii"]
[Black "GasconJR"]
[Result "1/2-1/2"]
[WhiteElo "2293"]
[BlackElo "2597"]
[TimeControl "180+1"]
[EndTime "10:08:30 PDT"]
[Termination "Game drawn - insufficient material"]

1. e4 {[%clk 0:02:57.8]} 1... c5 {[%clk 0:02:59.2]} 2. Nf3 {[%clk 0:02:56.4]}
2... Nc6 {[%clk 0:02:59.2]} 3. d3 {[%clk 0:02:56]} 3... g6 {[%clk 0:02:58.3]} 4.
g3 {[%clk 0:02:56]} 4... Bg7 {[%clk 0:02:58.3]} 5. Bg2 {[%clk 0:02:55.8]} 5...
e5 {[%clk 0:02:58.8]} 6. O-O {[%clk 0:02:55.6]} 6... Nge7 {[%clk 0:02:59.2]} 7.
c3 {[%clk 0:02:55.7]} 7... O-O {[%clk 0:02:59.1]} 8. Be3 {[%clk 0:02:55.2]} 8...
d6 {[%clk 0:02:54.8]} 9. Na3 {[%clk 0:02:54.4]} 9... h6 {[%clk 0:02:50.4]} 10.
Nc2 {[%clk 0:02:48.1]} 10... f5 {[%clk 0:02:49.5]} 11. Qd2 {[%clk 0:02:41.4]}
11... g5 {[%clk 0:02:36.5]} 12. exf5 {[%clk 0:02:40.7]} 12... Nxf5 {[%clk
0:02:37]} 13. Rae1 {[%clk 0:02:39]} 13... g4 {[%clk 0:02:35.9]} 14. Nh4 {[%clk
0:02:36.1]} 14... Nxh4 {[%clk 0:02:35.9]} 15. gxh4 {[%clk 0:02:36]} 15... Qxh4
{[%clk 0:02:35.9]} 16. d4 {[%clk 0:02:34.5]} 16... cxd4 {[%clk 0:02:19]} 17.
cxd4 {[%clk 0:02:35.4]} 17... Bf5 {[%clk 0:02:07.3]} 18. dxe5 {[%clk 0:02:22.6]}
18... Bxe5 {[%clk 0:01:59.5]} 19. f4 {[%clk 0:02:17.7]} 19... gxf3 {[%clk
0:01:58.7]} 20. Bxf3 {[%clk 0:02:04.9]} 20... Bh3 {[%clk 0:01:24]} 21. Rf2
{[%clk 0:01:49.2]} 21... Rxf3 {[%clk 0:01:11.8]} 22. Qd5+ {[%clk 0:01:40.6]}
22... Kh8 {[%clk 0:00:53.8]} 23. Qxf3 {[%clk 0:01:37.6]} 23... Rg8+ {[%clk
0:00:53]} 24. Kh1 {[%clk 0:01:32.5]} 24... Bg4 {[%clk 0:00:50.3]} 25. Qe4 {[%clk
0:01:26.2]} 25... Qh5 {[%clk 0:00:38.3]} 26. Ref1 {[%clk 0:01:16]} 26... Bh3
{[%clk 0:00:28.8]} 27. Re1 {[%clk 0:01:11.1]} 27... Be6 {[%clk 0:00:17.7]} 28.
Rd2 {[%clk 0:01:03.4]} 28... Bf5 {[%clk 0:00:16.4]} 29. Qd5 {[%clk 0:00:59.3]}
29... Qh4 {[%clk 0:00:14.2]} 30. Bg1 {[%clk 0:00:53.4]} 30... Bxc2 {[%clk
0:00:10.3]} 31. Rxe5 {[%clk 0:00:52]} 31... Nxe5 {[%clk 0:00:09.9]} 32. Rxc2
{[%clk 0:00:51.7]} 32... Qg4 {[%clk 0:00:09.8]} 33. Bxa7 {[%clk 0:00:45.6]}
33... Nf3 {[%clk 0:00:08.2]} 34. Qd1 {[%clk 0:00:36.7]} 34... Qe4 {[%clk
0:00:07.3]} 35. Re2 {[%clk 0:00:29.4]} 35... Qc6 {[%clk 0:00:07.4]} 36. Rg2
{[%clk 0:00:24.2]} 36... Ne5 {[%clk 0:00:03.7]} 37. Qf1 {[%clk 0:00:22.6]} 37...
Rxg2 {[%clk 0:00:02.6]} 38. Qxg2 {[%clk 0:00:21.6]} 38... Qc1+ {[%clk
0:00:03.1]} 39. Bg1 {[%clk 0:00:21.4]} 39... Qb1 {[%clk 0:00:03.1]} 40. h3
{[%clk 0:00:20.6]} 40... Qxa2 {[%clk 0:00:03.1]} 41. Bd4 {[%clk 0:00:20.6]}
41... Qe6 {[%clk 0:00:04]} 42. Kh2 {[%clk 0:00:19.6]} 42... Kh7 {[%clk
0:00:03.5]} 43. Qxb7+ {[%clk 0:00:19.5]} 43... Kg6 {[%clk 0:00:03.1]} 44. Qe4+
{[%clk 0:00:19.9]} 44... Kf7 {[%clk 0:00:02.2]} 45. Bxe5 {[%clk 0:00:20.1]}
45... dxe5 {[%clk 0:00:02.2]} 46. Qh7+ {[%clk 0:00:20.2]} 46... Ke8 {[%clk
0:00:03.1]} 47. Qh8+ {[%clk 0:00:20.5]} 47... Kd7 {[%clk 0:00:03.6]} 48. Qg7+
{[%clk 0:00:21]} 48... Kd6 {[%clk 0:00:04.2]} 49. Qg2 {[%clk 0:00:21.5]} 49...
e4 {[%clk 0:00:04.3]} 50. Qg3+ {[%clk 0:00:21.4]} 50... Kd5 {[%clk 0:00:04.4]}
51. Kg2 {[%clk 0:00:21.3]} 51... e3 {[%clk 0:00:04.6]} 52. Kf3 {[%clk
0:00:20.6]} 52... e2 {[%clk 0:00:04.7]} 53. Qe1 {[%clk 0:00:20.4]} 53... Qe4+
{[%clk 0:00:04.6]} 54. Kf2 {[%clk 0:00:20.6]} 54... Qf5+ {[%clk 0:00:03]} 55.
Kxe2 {[%clk 0:00:20.5]} 55... Qxh3 {[%clk 0:00:03.7]} 56. Qd2+ {[%clk
0:00:19.7]} 56... Kc4 {[%clk 0:00:04.2]} 57. Qc2+ {[%clk 0:00:18.9]} 57... Kb4
{[%clk 0:00:04.7]} 58. Qd2+ {[%clk 0:00:16.9]} 58... Kb3 {[%clk 0:00:04.8]} 59.
Qd5+ {[%clk 0:00:15.8]} 59... Kxb2 {[%clk 0:00:04.6]} 60. Qe5+ {[%clk
0:00:15.9]} 60... Kb3 {[%clk 0:00:03.9]} 61. Qe3+ {[%clk 0:00:15.8]} 61... Qxe3+
{[%clk 0:00:03.6]} 62. Kxe3 {[%clk 0:00:16.7]} 62... Kc4 {[%clk 0:00:04.5]} 63.
Kf3 {[%clk 0:00:17.6]} 63... Kd5 {[%clk 0:00:04.9]} 64. Kg4 {[%clk 0:00:18.5]}
64... Ke6 {[%clk 0:00:05.4]} 65. Kh5 {[%clk 0:00:19.4]} 65... Kf7 {[%clk
0:00:06]} 66. Kxh6 {[%clk 0:00:20.3]} 1/2-1/2

[Event "*** Titled Tuesday Blitz"]
[Site "Chess.com"]
[Date "2020.05.05"]
[Round "1"]
[White "Harry_Rakkel"]
[Black "sjevtic"]
[Result "1/2-1/2"]
[WhiteElo "2628"]
[BlackElo "2320"]
[TimeControl "180+1"]
[EndTime "10:08:35 PDT"]
[Termination "Game drawn - insufficient material"]

1. d4 {[%clk 0:03:00.9]} 1... d5 {[%clk 0:02:59.7]} 2. Nf3 {[%clk 0:02:59.9]}
2... Nf6 {[%clk 0:02:59.5]} 3. Bf4 {[%clk 0:02:59.4]} 3... e6 {[%clk 0:02:59]}
4. e3 {[%clk 0:02:59.1]} 4... c5 {[%clk 0:02:57.2]} 5. c3 {[%clk 0:02:58.3]}
5... Qb6 {[%clk 0:02:56.3]} 6. Qb3 {[%clk 0:02:56.8]} 6... c4 {[%clk 0:02:56.5]}
7. Qxb6 {[%clk 0:02:56.4]} 7... axb6 {[%clk 0:02:57.4]} 8. a3 {[%clk 0:02:56.3]}
8... b5 {[%clk 0:02:57.5]} 9. Bxb8 {[%clk 0:02:54.4]} 9... Rxb8 {[%clk 0:02:57]}
10. Nbd2 {[%clk 0:02:55]} 10... Bd6 {[%clk 0:02:47.2]} 11. g3 {[%clk 0:02:51.4]}
11... O-O {[%clk 0:02:46.2]} 12. Bg2 {[%clk 0:02:51.1]} 12... Nd7 {[%clk
0:02:41.5]} 13. O-O {[%clk 0:02:49.7]} 13... Nb6 {[%clk 0:02:39.1]} 14. e4
{[%clk 0:02:48]} 14... Na4 {[%clk 0:02:38.2]} 15. Rab1 {[%clk 0:02:47.1]} 15...
b6 {[%clk 0:02:35.5]} 16. Rfe1 {[%clk 0:02:39.7]} 16... Bb7 {[%clk 0:02:35.5]}
17. e5 {[%clk 0:02:35.9]} 17... Be7 {[%clk 0:02:34.6]} 18. Re2 {[%clk
0:02:35.1]} 18... Bc6 {[%clk 0:02:33.9]} 19. h4 {[%clk 0:02:34.1]} 19... Rfe8
{[%clk 0:02:28.5]} 20. Nf1 {[%clk 0:02:31.7]} 20... Ra8 {[%clk 0:02:19]} 21.
Rbe1 {[%clk 0:02:29.9]} 21... Ra7 {[%clk 0:02:16.6]} 22. Bh3 {[%clk 0:02:29.2]}
22... Nxc3 {[%clk 0:02:09]} 23. bxc3 {[%clk 0:02:27.9]} 23... Rxa3 {[%clk
0:02:09.9]} 24. Rc1 {[%clk 0:02:23.5]} 24... Rea8 {[%clk 0:02:08.1]} 25. Ne1
{[%clk 0:02:15.4]} 25... Rb3 {[%clk 0:01:57.4]} 26. Nd2 {[%clk 0:02:08.3]} 26...
Rb2 {[%clk 0:01:57.3]} 27. Bf1 {[%clk 0:01:46.5]} 27... Raa2 {[%clk 0:01:54.5]}
28. Nef3 {[%clk 0:01:45.7]} 28... g6 {[%clk 0:01:32.5]} 29. Rb1 {[%clk
0:01:39.4]} 29... b4 {[%clk 0:01:23]} 30. Rxb2 {[%clk 0:01:29.5]} 30... Rxb2
{[%clk 0:01:23.9]} 31. cxb4 {[%clk 0:01:29.4]} 31... Bxb4 {[%clk 0:01:21.6]} 32.
Ne4 {[%clk 0:01:28.7]} 32... Rxe2 {[%clk 0:01:15.4]} 33. Nf6+ {[%clk 0:01:28.2]}
33... Kg7 {[%clk 0:01:11.4]} 34. Bxe2 {[%clk 0:01:29.1]} 34... Ba4 {[%clk
0:01:04.6]} 35. Kf1 {[%clk 0:01:12.6]} 35... c3 {[%clk 0:00:57.9]} 36. Ne1
{[%clk 0:01:12.1]} 36... c2 {[%clk 0:00:56.8]} 37. Nxc2 {[%clk 0:00:57.5]} 37...
Bxc2 {[%clk 0:00:57.7]} 38. h5 {[%clk 0:00:57.7]} 38... Bc3 {[%clk 0:00:52.6]}
39. Ne8+ {[%clk 0:00:57.7]} 39... Kf8 {[%clk 0:00:48.8]} 40. Nf6 {[%clk
0:00:57.4]} 40... Bxd4 {[%clk 0:00:48.1]} 41. Nxh7+ {[%clk 0:00:55.1]} 41... Kg7
{[%clk 0:00:48.5]} 42. hxg6 {[%clk 0:00:55.1]} 42... fxg6 {[%clk 0:00:47.4]} 43.
Ng5 {[%clk 0:00:55]} 43... Bxe5 {[%clk 0:00:39.5]} 44. Nxe6+ {[%clk 0:00:54]}
44... Kf6 {[%clk 0:00:39.9]} 45. Nf8 {[%clk 0:00:43.2]} 45... Bf5 {[%clk
0:00:27.4]} 46. f4 {[%clk 0:00:41.5]} 46... Bc3 {[%clk 0:00:19.1]} 47. g4 {[%clk
0:00:39.9]} 47... Bc8 {[%clk 0:00:19.3]} 48. Nh7+ {[%clk 0:00:38.3]} 48... Kg7
{[%clk 0:00:18.7]} 49. Ng5 {[%clk 0:00:38]} 49... Bd7 {[%clk 0:00:18.7]} 50. Kf2
{[%clk 0:00:31.8]} 50... b5 {[%clk 0:00:19.2]} 51. Kf3 {[%clk 0:00:30.3]} 51...
b4 {[%clk 0:00:19.8]} 52. Bd3 {[%clk 0:00:30.9]} 52... b3 {[%clk 0:00:20.3]} 53.
f5 {[%clk 0:00:30.7]} 53... gxf5 {[%clk 0:00:20.2]} 54. gxf5 {[%clk 0:00:31]}
54... Kf6 {[%clk 0:00:20.1]} 55. Ne6 {[%clk 0:00:29.9]} 55... Bxe6 {[%clk
0:00:19.8]} 56. fxe6 {[%clk 0:00:30]} 56... Kxe6 {[%clk 0:00:20.7]} 57. Ke3
{[%clk 0:00:29.8]} 57... Kd6 {[%clk 0:00:21.3]} 58. Bg6 {[%clk 0:00:17.5]} 58...
Kc5 {[%clk 0:00:20.7]} 59. Kd3 {[%clk 0:00:17.1]} 59... Be5 {[%clk 0:00:18.7]}
60. Bf7 {[%clk 0:00:15.4]} 60... b2 {[%clk 0:00:13.5]} 61. Kc2 {[%clk
0:00:15.3]} 61... Kc4 {[%clk 0:00:13.9]} 62. Bg8 {[%clk 0:00:15.3]} 62... Bc3
{[%clk 0:00:13.7]} 63. Bf7 {[%clk 0:00:15.7]} 63... Kd4 {[%clk 0:00:13.3]} 64.
Bg8 {[%clk 0:00:15.8]} 64... Kc5 {[%clk 0:00:13.3]} 65. Bf7 {[%clk 0:00:15.6]}
65... Kd6 {[%clk 0:00:13.7]} 66. Bg8 {[%clk 0:00:15.5]} 66... Ke5 {[%clk
0:00:14.1]} 67. Bf7 {[%clk 0:00:15.3]} 67... Ke4 {[%clk 0:00:14.4]} 68. Bg8
{[%clk 0:00:15.1]} 68... d4 {[%clk 0:00:13.7]} 69. Bh7+ {[%clk 0:00:15.7]} 69...
Ke3 {[%clk 0:00:14.2]} 70. Bg6 {[%clk 0:00:15.8]} 70... d3+ {[%clk 0:00:05.4]}
71. Bxd3 {[%clk 0:00:15.4]} 71... b1=Q+ {[%clk 0:00:06]} 72. Kxb1 {[%clk
0:00:15.8]} 1/2-1/2